Cogmind - Beta 11.1 @@@ ROGUE MODE // 2022.04.23 @ 19:47:40 Player: the cat Result: Destroyed by as-39401 with Assembled Heavy Rifle Performance ------------- Evolutions (1) 500 Regions Visited (5) 1000 Robots Destroyed (35) 175 Value Destroyed (824) 824 Prototype IDs (5) 100 Alien Tech Used (0) 0 Bonus (13) 13 TOTAL SCORE: 2612 Bonus ------- High Alert Combat Kills 13 Cogmind --------- Core Integrity 0/400 Matter 266/300 Energy 265/265 System Corruption 2% Temperature Cool (0) Movement Treading (240) Ox1 Location -9/Exiles Parts ------- > --- POWER (1) -------- Improved Ion Engine > --- PROPULSION (2) --- Light Treads Light Treads > --- UTILITY (4) ------ Heat Sink High-capacity Storage Unit > --- WEAPON (2) ------- Light EM Pulse Cannon Improved Assault Rifle > --- INVENTORY (20) --- Nuclear Core Light Treads Large Storage Unit High-capacity Matter Pod (200) Experimental Sensor Array Hacking Suite Sensor Drone Bay (20/20) Spread Laser Flak Cannon Flak Cannon Rocket Launcher Mini Grenade Launcher Peak State ------------ > --- POWER ------------ Improved Ion Engine > --- PROPULSION ------- Light Treads Light Treads > --- UTILITY ---------- Heat Sink Heat Sink High-capacity Storage Unit Experimental Sensor Array > --- WEAPON ----------- Light EM Pulse Cannon Improved Assault Rifle > --- INVENTORY -------- Nuclear Core Reinforced Deuterium Engine Light Fission Core Light Treads Large Storage Unit High-capacity Matter Pod Hacking Suite Sensor Drone Bay Spread Laser Flak Cannon Flak Cannon Rocket Launcher Mini Grenade Launcher [Rating: 24] Favorites ----------- Power Improved Ion Engine Engine Improved Ion Engine Propulsion Light Treads Treads Light Treads Wheel Wheel Utility Heat Sink Device Heat Sink Storage Large Storage Unit Protection Light Armor Plating Weapon Flak Cannon Energy Gun Beam Rifle Energy Cannon Light EM Pulse Cannon Ballistic Gun Assault Rifle Ballistic Cannon Flak Cannon Launcher Grenade Launcher Build | -11 -10 -10 -9 -9 -9 ------- Run | Scr Mat Min Mat Min Exi Slots Evolved 2 | . . . 2 . . Power . | . . . . . . Propulsion . | . . . . . . Utility 2 | . . . 2 . . Weapon . | . . . . . . Parts Attached 58 | 7 4 2 25 16 4 Power 5 | 1 . . 3 1 . Engine 5 | 1 . . 3 1 . Core . | . . . . . . Reactor . | . . . . . . Propulsion 10 | 2 . . 4 4 . Treads 7 | 1 . . 3 3 . Leg . | . . . . . . Wheel 3 | 1 . . 1 1 . Hover . | . . . . . . Flight . | . . . . . . Utility 14 | 1 2 2 5 2 2 Device 5 | . . 1 2 1 1 Storage 5 | 1 1 . 1 1 1 Processor . | . . . . . . Hackware . | . . . . . . Protection 4 | . 1 1 2 . . Artifact . | . . . . . . Weapon 29 | 3 2 . 13 9 2 Energy Gun 5 | 2 . . 3 . . Energy Cannon 5 | . . . 4 . 1 Ballistic Gun 10 | 1 2 . 4 2 1 Ballistic Cannon 3 | . . . . 3 . Launcher 6 | . . . 2 4 . Special Weapon . | . . . . . . Impact Weapon . | . . . . . . Slashing Weapon . | . . . . . . Piercing Weapon . | . . . . . . Special Melee Weapon . | . . . . . . Unidentified Prototypes 3 | . . 1 1 . 1 Parts Lost 16 | . . . 10 5 1 Power 2 | . . . 1 1 . Propulsion 4 | . . . 2 2 . Utility 4 | . . . 2 1 1 Weapon 6 | . . . 5 1 . Highest Loss Streak 9 | . . . 9 5 1 To Critical Strikes . | . . . . . . Average Slot Usage (%) 90 | . 100 100 78 91 88 Engine 11 | . 14 14 11 10 11 Treads 17 | . 14 14 10 18 22 Wheel 6 | . 14 14 10 3 . Device 13 | . . . 7 22 22 Storage 11 | . 14 14 11 11 11 Protection 5 | . 14 14 6 3 . Energy Gun 3 | . 1 . 12 3 . Ballistic Gun 9 | . 26 28 6 2 . Ballistic Cannon 10 | . . . . 15 21 Naked Turns . | . . . . . . Heaviest Build 61 | 12 30 41 37 41 61 Greatest Support 40 | 10 10 20 20 40 40 Greatest Overweight (x) 4 | 2 2 4 2 2 1 Average Overweight (x) 1 | . 1 1 1 1 1 Largest Inventory Capacity 25 | 8 15 15 15 25 20 Average Capacity 14 | 7 9 15 15 15 17 Most Carried 16 | 4 13 15 15 15 16 Average Carried 12 | 2 7 14 13 12 14 Final Capacity 20 | 8 15 15 15 15 20 Final Carried 15 | 4 13 15 15 12 12 Class Distribution -------------------- 62% | Scavenger-Mutant 37% | Mutant Dominant Class ---------------- Mutant | -10/Materials Mutant | -10/Mines Mutant | -9/Materials Scavenger-Mutant | -9/Mines Scavenger-Mutant | -9/Exiles Resources | -11 -10 -10 -9 -9 -9 ----------- Run | Scr Mat Min Mat Min Exi Matter Collected 1378 | 153 76 291 484 307 67 Remotely . | . . . . . . Salvage Created 943 | . 95 75 593 166 14 Parts 76 | . 15 5 41 10 5 Haulers Intercepted . | . . . . . . Recyclers Shooed 2 | . . . . 2 . Parts Field Recycled . | . . . . . . Retrieved Matter . | . . . . . . Parts Self-Destructed . | . . . . . . Prevented . | . . . . . . Kills | -11 -10 -10 -9 -9 -9 ------- Run | Scr Mat Min Mat Min Exi Combat Hostiles Destroyed 50 | . 6 3 13 28 . Guns 22 | . 6 3 12 1 . Cannons 3 | . . . 1 2 . AOE 25 | . . . . 25 . Classes Destroyed 10 | . 1 1 5 3 . Builder 1 | . . . 1 . . Tunneler 1 | . . . 1 . . Recycler 1 | . . . . 1 . Swarmer 16 | . 6 2 . 8 . Grunt 6 | . . 1 5 . . Brawler 1 | . . . 1 . . Duelist 2 | . . . 2 . . Sentry 5 | . . . 5 . . Demolisher 1 | . . . . 1 . Assembled 19 | . . . . 19 . Best Kill Streak 20 | . 3 2 4 20 1 Combat Bots Only 20 | . 3 2 4 20 . Max Kills in Single Turn 4 | . 1 1 2 4 1 Gunslinging . | . . . . . . Exploded 4 | . . . . 4 . Melee . | . . . . . . Uniques/NPCs Destroyed 1 | . . . . . 1 EX-DEC (-9/Exiles) Combat | -11 -10 -10 -9 -9 -9 -------- Run | Scr Mat Min Mat Min Exi Damage Taken 2518 | . 86 135 1455 583 259 Core 434 | . 8 24 281 74 47 Absorbed by Shields . | . . . . . . Core Remaining (%) 93 | 100 . 87 . . . Volleys Fired 106 | . 13 11 58 20 4 Largest 2 | . 2 2 2 2 2 Hottest 121 | . 40 40 121 88 79 Shots Fired 173 | . 26 22 94 24 7 Gun 129 | . 26 22 76 2 3 Cannon 26 | . . . 13 9 4 Launcher 18 | . . . 5 13 . Special . | . . . . . . Kinetic 100 | . 26 22 40 9 3 Thermal 38 | . . . 36 2 . Explosive 18 | . . . 5 13 . Electromagnetic 17 | . . . 13 . 4 Robot Hit Streak 15 | . 12 8 15 5 6 Robot Miss Streak 9 | . 2 4 7 9 1 Penetration Max . | . . . . . . Secondary Targets 2 | . 1 . 1 . . Max Gunslinging Chain 1 | . 1 . 1 . . Shots Hit Robots 121 | . 18 13 71 14 5 Core Hits 102 | . 7 5 37 51 2 Critical Kills . | . . . . . . Critical Parts Destroyed . | . . . . . . Critical Strikes . | . . . . . . Melee Attacks . | . . . . . . Impact . | . . . . . . Slashing . | . . . . . . Piercing . | . . . . . . Sneak Attacks . | . . . . . . Combat Hostiles . | . . . . . . Follow-up Attacks . | . . . . . . Damage Inflicted 3302 | . 219 172 1264 1595 52 Guns 1248 | . 219 172 794 15 48 Cannons 334 | . . . 215 115 4 Explosions 1719 | . . . 255 1464 . Melee . | . . . . . . Ramming 1 | . . . . 1 . Kinetic 934 | . 219 172 380 115 48 Thermal 454 | . . . 439 15 . Explosive 1694 | . . . 230 1464 . Electromagnetic 219 | . . . 215 . 4 Impact . | . . . . . . Slashing . | . . . . . . Piercing . | . . . . . . Highest Corruption 2 | . . . . . 2 Average Corruption 1 | . . . . . 1 Corruption Purged . | . . . . . . Corruption Blocked . | . . . . . . Effects 1 | . . . . . 1 Message Errors 1 | . . . . . 1 Overload Shots . | . . . . . . Overflow Damage 55 | . . . 11 44 . Projectiles 7 | . . . 7 . . Explosions 48 | . . . 4 44 . Melee . | . . . . . . Knockbacks 3 | . . . . 3 . Impact . | . . . . . . Kinetic 3 | . . . . 3 . Secondary . | . . . . . . Self-Inflicted Damage 84 | . . . 56 28 . Shots 3 | . . . 2 1 . Rammed 1 | . . . . 1 . Targets Rammed 1 | . . . . 1 . Kicked . | . . . . . . Crushed . | . . . . . . Highest Temperature 238 | . . 24 238 . . Average Temperature 62 | . . 14 65 . . Received Heat Transfer 399 | . . 63 336 . . Siege Activations . | . . . . . . Robots Corrupted . | . . . . . . Combat Hostiles . | . . . . . . Parts Fried 1 | . . . 1 . . Impact Corruptions . | . . . . . . Robots Melted . | . . . . . . Combat Hostiles . | . . . . . . Parts Melted 4 | . . . . . 4 Heat Transferred 919 | . . . 882 37 . Parts Sabotaged . | . . . . . . Parts Stolen . | . . . . . . Parts Stripped . | . . . . . . Power Chain Reactions 1 | . . . 1 . . Missiles Intercepted . | . . . . . . Alert | -11 -10 -10 -9 -9 -9 ------- Run | Scr Mat Min Mat Min Exi Peak Influence 545 | . 196 161 373 545 . Initial 120 | . . 76 . 120 . Average 194 | . 131 80 180 285 . Maximum Alert Level 2 | . . . 1 2 . Low Security (%) 61 | 100 100 100 46 36 . Level 1 27 | . . . 53 39 . Level 2 10 | . . . . 24 . Level 3 . | . . . . . . Level 4 . | . . . . . . Level 5 . | . . . . . . High Security . | . . . . . . Max Security . | . . . . . . Squads Dispatched 2 | . . . 2 . . Investigation . | . . . . . . Extermination . | . . . . . . Reinforcement 2 | . . . 2 . . Assault . | . . . . . . Garrison . | . . . . . . Intercept . | . . . . . . Searches Triggered . | . . . . . . Construction Impeded . | . . . . . . Haulers Reinforced . | . . . . . . Active Scanning Responses . | . . . . . . Cargo Convoy Interrupts . | . . . . . . Stealth | -11 -10 -10 -9 -9 -9 --------- Run | Scr Mat Min Mat Min Exi Distress Signals 4 | . 1 . 3 . . Communications Jammed . | . . . . . . Distress Signals . | . . . . . . Times Spotted 70 | . 12 6 16 30 6 Peak Tracking Total 9 | . 5 3 5 9 9 Tactical Retreats . | . . . . . . Traps | -11 -10 -10 -9 -9 -9 ------- Run | Scr Mat Min Mat Min Exi Traps Triggered . | . . . . . . Indirectly . | . . . . . . Trap Hack Attempts . | . . . . . . Triggered . | . . . . . . Disarmed . | . . . . . . Reprogrammed . | . . . . . . Reused 2 | . . . . . 2 Traps Extracted . | . . . . . . Installed 2 | . . . . . 2 Triggered . | . . . . . . Most Traps Carried 2 | . . . . 2 2 Exploded 2 | . . . . . 2 Machines | -11 -10 -10 -9 -9 -9 ---------- Run | Scr Mat Min Mat Min Exi Machines Disabled 3 | . . . 1 1 1 Max in Single Turn 1 | . . . 1 1 1 Machines Sabotaged . | . . . . . . Garrisons Compromised . | . . . . . . Overloaded Fab Kills . | . . . . . . Hacking | -11 -10 -10 -9 -9 -9 --------- Run | Scr Mat Min Mat Min Exi Machines Accessed 13 | . 5 2 3 2 1 Terminals 9 | . 4 1 3 1 . Fabricators . | . . . . . . Repair Stations . | . . . . . . Recycling Units 1 | . 1 . . . . Scanalyzers . | . . . . . . Garrison Access . | . . . . . . Total Hacks 33 | . 15 2 13 2 1 Successful 24 | . 11 1 10 1 1 Failed 9 | . 4 1 3 1 . Catastrophic 1 | . . 1 . . . Database Lockouts . | . . . . . . Manual 24 | . 13 1 9 1 . Terminals 28 | . 13 1 13 1 . Fabricators . | . . . . . . Repair Stations . | . . . . . . Recycling Units 2 | . 2 . . . . Scanalyzers . | . . . . . . Garrison Access . | . . . . . . Terminal Hacks 17 | . 6 1 8 1 1 Record 1 | . . . . . 1 Part Schematic 1 | . . . 1 . . Prototype ID Bank 1 | . . . 1 . . Open Door 2 | . . 1 . 1 . Branch Access Points 2 | . 1 . 1 . . Locate Traps 1 | . 1 . . . . Transport Status 1 | . . . 1 . . Hauler Manifests 2 | . 1 . 1 . . Registered Components 2 | . 1 . 1 . . Registered Prototypes 1 | . . . 1 . . Zone Layout 3 | . 2 . 1 . . Fabricator Hacks . | . . . . . . Repair Station Hacks . | . . . . . . Recycling Unit Hacks . | . . . . . . Scanalyzer . | . . . . . . Garrison Access Hacks . | . . . . . . Unauthorized Hacks 7 | . 5 . 2 . . Terminals 5 | . 3 . 2 . . Track 1 | . 1 . . . . Assimilate 1 | . 1 . . . . Botnet 1 | . . . 1 . . Operators 2 | . 1 . 1 . . Fabricators . | . . . . . . Repair Stations . | . . . . . . Recycling Units 2 | . 2 . . . . Reject 1 | . 1 . . . . Mask 1 | . 1 . . . . Scanalyzers . | . . . . . . Garrison Access . | . . . . . . Data Cores Recovered . | . . . . . . Used . | . . . . . . Hacking Detections 10 | . 5 1 3 1 . Full Trace Events . | . . . . . . Feedback Events . | . . . . . . Feedback Blocked . | . . . . . . Robot Schematics Acquired . | . . . . . . Robots Built . | . . . . . . Authchips . | . . . . . . Time . | . . . . . . Total Robot Build Rating . | . . . . . . Part Schematics Acquired 1 | . . . 1 . . Parts Built . | . . . . . . Authchips . | . . . . . . Time . | . . . . . . Total Part Build Rating . | . . . . . . Parts Repaired . | . . . . . . Time . | . . . . . . Parts Recycled . | . . . . . . Recycled Matter . | . . . . . . Retrieved Matter . | . . . . . . Retrieved Components . | . . . . . . Parts Scanalyzed . | . . . . . . Part Schematics Acquired . | . . . . . . Parts Damaged . | . . . . . . Bothacking | -11 -10 -10 -9 -9 -9 ------------ Run | Scr Mat Min Mat Min Exi Used RIF Installer . | . . . . . . Robots Hacked . | . . . . . . Non-combat . | . . . . . . Combat . | . . . . . . Robot Hacks Applied . | . . . . . . Relay Couplers Released . | . . . . . . Fabnet Peak Effective % . | . . . . . . Robots Rewired . | . . . . . . Allies Hacked . | . . . . . . Hacks Repelled . | . . . . . . Allies | -11 -10 -10 -9 -9 -9 -------- Run | Scr Mat Min Mat Min Exi Total Allies 4 | . 1 . . 3 . Largest Group 3 | . 1 1 1 3 3 Highest-Rated Group 40 | . 10 10 10 40 40 Highest-Rated Ally 16 | . 10 10 10 16 16 Total Orders . | . . . . . . Ally Attacks 9 | . . . . . 9 Total Damage 85 | . . . . . 85 Kills . | . . . . . . Allies Corrupted 1 | . . . . . 1 Allies Melted . | . . . . . . Intel | -11 -10 -10 -9 -9 -9 ------- Run | Scr Mat Min Mat Min Exi Robot Analysis Total . | . . . . . . Derelict Logs Recovered 1 | . . . . 1 . Drone Launches . | . . . . . . Drone Recoveries . | . . . . . . Exploration | -11 -10 -10 -9 -9 -9 ------------- Run | Scr Mat Min Mat Min Exi Turns Passed 3717 | 61 351 633 554 1249 869 Spaces Moved 2033 | 50 294 481 267 589 352 Core 5 | 5 . . . . . Treads 747 | . . 20 13 362 352 Legs . | . . . . . . Wheels 1281 | 45 294 461 254 227 . Hover . | . . . . . . Flight . | . . . . . . Fastest Speed 50 | 50 95 110 110 130 240 Average Speed 159 | 94 97 115 127 197 240 Slowest Speed 240 | 150 110 240 240 240 240 Overloaded Moves . | . . . . . . Propulsion Burnouts . | . . . . . . Robots Hopped . | . . . . . . Cave-ins Triggered . | . . . . . . Exploration Rate (%) 56 | 3 64 83 28 99 59 Regions Visited 5 Branch Regions 3 Pre-discovered Areas 1 | . . . . . 1 Known Exits Taken 2 | . 1 . 1 . . Unknown Exits Taken 3 | 1 . 1 . 1 . Scrap Searched 4 | . . 2 . 2 . Spaces Dug . | . . . . . . Terrain Destroyed 141 | . . . 33 108 . Melee . | . . . . . . Projectile . | . . . . . . AOE 141 | . . . 33 108 . Terrain Rammed . | . . . . . . Walls Destroyed . | . . . . . . Machines Disabled . | . . . . . . Actions | -11 -10 -10 -9 -9 -9 --------- Run | Scr Mat Min Mat Min Exi Total 2337 | 60 335 536 388 646 372 Wait 67 | . 5 38 10 14 . Move 2028 | 49 293 480 266 588 352 Hop . | . . . . . . Pick Up 44 | 4 14 2 16 4 4 Fast Attach 18 | 6 1 2 8 . 1 Attach 17 | . 1 . 11 4 1 Detach 3 | . . 1 1 . 1 Swap 23 | 1 2 . 6 12 2 Drop 28 | . 6 2 12 3 5 Fire 106 | . 13 11 58 20 4 Melee . | . . . . . . Ram 1 | . . . . 1 . Kick . | . . . . . . Crush . | . . . . . . Escape Stasis . | . . . . . . Rewire . | . . . . . . Trap 2 | . . . . . 2 Miscellaneous . | . . . . . . Route ------- -11/Scrapyard -10/Materials (discovered 4 exits: *Mat x2 / *Min x2) -10/Mines -9/Materials (discovered 4 exits: [*Mat] / *Min x2 / Sto) -9/Mines (discovered 3 exits: [*Mat x2] / *Exi) -9/Exiles History --------- Turn | Location | Event 11 | -11/Scrapyard | Discovered new exit (range 16) 62 | -11/Scrapyard | Entered Materials 164 | -10/Materials | Identified exit to Mines 191 | -10/Materials | Discovered new exit (range 16) 244 | -10/Materials | Discovered new exit (range 15) 316 | -10/Materials | Build established: Mutant 413 | -10/Materials | Entered Mines 413 | -10/Mines | Accompanied by 1 ally 420 | -10/Mines | Received a Rocket Launcher from a helpful Derelict 434 | -10/Mines | Joined a pair of Derelicts in attacking an 0b10 outpost 767 | -10/Mines | Found the Drone Emporium 773 | -10/Mines | Found Prototype Device 773 | -10/Mines | Identified Sensor Drone Bay 1017 | -10/Mines | Discovered new exit (range 8) 1046 | -10/Mines | Entered Materials 1046 | -9/Materials | Accompanied by 1 ally 1046 | -9/Materials | Evolved 2 slots: Utility x2 1089 | -9/Materials | Identified exit to Mines 1089 | -9/Materials | Identified exit to Storage 1214 | -9/Materials | Core integrity fell below 50% 1261 | -9/Materials | Lost 9 parts (1p2n1u5w) 1391 | -9/Materials | Discovered new exit (range 15) 1600 | -9/Materials | Entered Mines 1640 | -9/Mines | Build established: Scavenger-Mutant 1640 | -9/Mines | Discovered new exit (range 4) 1763 | -9/Mines | Found a hidden stash of uninstalled traps 1803 | -9/Mines | Discovered new exit (range 8) 1915 | -9/Mines | Assembled infested the area 1960 | -9/Mines | Core integrity fell below 20% 1980 | -9/Mines | Lost 5 parts (1p2n1u1w) 1985 | -9/Mines | Destroyed 20 combat bots 2013 | -9/Mines | Met a Derelict who couldn't figure out how to use a Trap Extractor 2072 | -9/Mines | Learned Materials non-interactive machine intel 2084 | -9/Mines | Found a damaged Exp. Sensor Array with a note attached 2093 | -9/Mines | Found Prototype Device 2365 | -9/Mines | Assisted by bots powering up and referring to "LRC-V3" 2833 | -9/Mines | Deemed a non-threat by the Exiles lab entrance 2836 | -9/Mines | Discovered new exit (range 5) 2849 | -9/Mines | Entered Exiles 2849 | -9/Exiles | Accompanied by 3 allies 2953 | -9/Exiles | Met 8R-AWN 2992 | -9/Exiles | Met EX-HEX 3083 | -9/Exiles | Met EX-BIN 3253 | -9/Exiles | Met EX-DEC 3268 | -9/Exiles | Learned location of Zion (-6) 3689 | -9/Exiles | Identified Exp. Sensor Array 3692 | -9/Exiles | Attacked by the Exiles 3707 | -9/Exiles | Destroyed EX-DEC 3718 | -9/Exiles | Destroyed by as-39401 with Assembled Heavy Rifle Last Messages --------------- 03693_ Dropped Rigged Rnf. Deuterium Engine. 03694_ EX-DEC: "Let's see what this bad boy can do..." 03694_ EX-DEC deploys DAS Turret. 03697_ Mercenary 2a destroyed. 03700_ Trooper 2b system terminally corrupted. 03700_ Rigged Rnf. Deuterium Engine explodes. 03700_ Trooper 2a destroyed. 03702_ EX-DEC heat short circuits Imp. Armor Integrity Analyzer. 03704_ >MISAU2C= 01CNI=BFJ2EUWL 03705_ EX-DEC heat short circuits Prototype Engine. 03706_ Heat Sink destroyed. 03707_ Machine disabled. 03707_ EX Chip 2 melted. 03707_ EX Chip 1 melted. 03707_ EX-DEC: "This would never have happened if OCT was still around!" 03707_ EX-DEC destroyed. 03710_ Dropped Rigged Lgt. Fission Core. 03717_ Rigged Lgt. Fission Core explodes. 03717_ as-19069 destroyed. Map ----- +----------------------------------------------------+ | ??????????????????????????????????????????????#### | | ?????????????????????????????????????????????""""" | | ?????????????????????????????????????????????"""" | | ????????????????????????????????????????????#""X" | | ????????????????????????????????????????????#" | | ????????????????????????????????????????????#" | | ????????????????????????????????????????????#""""" | | ????????????????????????????????????????????##"### | | ?????????????????????????????????????????????????? | | ?????????????????????????????????????????????????? | | ?????????????????????????????????????????????????? | | ???????????????????#######???????????????????????? | | ????? ######???????#!!! "#???????????????????????? | | ???? #""#??????# "#???????????????????????? | | ???? ??????# "#???????????????????????? | | ???" #????## ""#????????????##?????????? | | ???? #####" ""#???????????? """??????? | | ????# ##" ""?????????????" """#?????? | | ?????# #"" #??????????????" ??????? | | ????????# #?????????????"" ??????? | | ???????????# ##????????????"" "??????? | | ????????????## "#???????????? ""??????? | | ?????########" ###???????????" "???????? | | ?????# !!""""" ##??????????# #???????? | | ?????#! "###"" ######???### ###?##### | | ?????# "#?##" @ " "#####X# #"###"""" | | ?????#! ##??#" """""" " | | ?????# !""""""###???#"# "" """ | | ?????##########?????#### % " " | | ???????????????????????### a a | | ?????????????????????????### = | | ???????????????????????????## ! !%* | | ????????????????????????????##!!!a= | | ?????????????????????????????#&%[! | | ??????????????????????????????#"%= | | ??????????????????????????????#"= # | | ?????????????????????????????#"" ""## | | ?????????????????????????????#" " """##? | | ?????????????????????????????""" """##?? | | ?????????????????????????????""" ""#??? | | ?????????????????????????????"" ##??? | | ?????????????????????????????""" ???? | | ?????????????????????????????"" ??? | | ??????????????????????????????"" ?? | | ?????????????????????????????#"""" ? | | ???????????????????????????????? ?? | | ????????????????????????????????? ??? | | ??????????????????????????????????" ???? | | ???????????????????????????????????? ?????? | | ?????????????????????????????????????????????????? | +----------------------------------------------------+ Best States ------------- Heat Dissipation 48 Energy Generation 14 Energy Capacity 265 Matter Stores 300 Matter Capacity 300 Sight Range 16 Robot Scan Range 20 Terrain Scan Density 10 Armor Coverage 150 Evasion (%) 41 Recoil Reduction 2 Item Schematics ----------------- Hcp. Storage Unit | -9/Materials | Hacked Robot Schematics ------------------ None Fabricated ------------ Nothing Alien Tech Used ----------------- None Achievements -------------- Exterminator Challenges ------------ None Game ------ Seed SignalMassBarrier Manual? 0 Play Time 00:34:18 Cumulative 218.9 hours Start 2022.04.23 @ 19:11:42 End 2022.04.23 @ 19:47:40 Sessions 1 Manual Loads 0 Difficulty Rogue Special Mode None Game No. 65 Rogue 48 Adventurer 17 Explorer 0 Win Type - Total 12 Types 7/0/4/1/0/0/0/0/0 Lore% 73 Gallery% 74 Achievement% 67 Wizard Run 0 Options --------- ASCII 0 Keyboard 0 Movement Arrows Keybinds 0 Fullscreen 1 Font 28/Dina Map View 72x54 Tactical HUD 1 Map Filters NONE Filters NONE Steam 1 RUN: ac10c213-5b67-42d8-8008-102167589fd5